[Event "*** Titled Tuesday Blitz"]
[Site "Chess.com"]
[Date "2020.11.24"]
[Round "8"]
[White "Xeniya2005"]
[Black "Jungle_Jaguar"]
[Result "0-1"]
[WhiteElo "2432"]
[BlackElo "2607"]
[TimeControl "180+1"]
[EndTime "11:45:44 PST"]
[Termination "Jungle_Jaguar won by resignation"]

1. e4 {[%clk 0:03:00.9]} 1... e5 {[%clk 0:02:59.5]} 2. Nf3 {[%clk 0:03:00.2]}
2... Nc6 {[%clk 0:02:59.7]} 3. Nc3 {[%clk 0:03:00.7]} 3... Nf6 {[%clk
0:02:59.3]} 4. Bb5 {[%clk 0:03:01]} 4... Nd4 {[%clk 0:02:59.8]} 5. Bc4 {[%clk
0:02:59.1]} 5... Bc5 {[%clk 0:02:58.6]} 6. Nxe5 {[%clk 0:02:55.5]} 6... Qe7
{[%clk 0:02:54.8]} 7. Nf3 {[%clk 0:02:48.3]} 7... d5 {[%clk 0:02:32.6]} 8. Nxd5
{[%clk 0:02:26.3]} 8... Qxe4+ {[%clk 0:02:30.3]} 9. Ne3 {[%clk 0:02:25.3]} 9...
Bg4 {[%clk 0:02:07.8]} 10. Be2 {[%clk 0:02:23]} 10... Nxe2 {[%clk 0:01:36.1]}
11. Qxe2 {[%clk 0:02:22]} 11... O-O-O {[%clk 0:01:33.8]} 12. d3 {[%clk
0:02:04.1]} 12... Qe6 {[%clk 0:00:53]} 13. Bd2 {[%clk 0:01:50]} 13... Rhe8
{[%clk 0:00:51.4]} 14. h3 {[%clk 0:01:27.5]} 14... Bh5 {[%clk 0:00:51.3]} 15. a3
{[%clk 0:00:54.4]} 15... Nd5 {[%clk 0:00:42.9]} 16. O-O-O {[%clk 0:00:51.8]}
16... Nf4 {[%clk 0:00:41.9]} 17. Qf1 {[%clk 0:00:50.4]} 17... Qa2 {[%clk
0:00:41.8]} 18. Bc3 {[%clk 0:00:48.9]} 18... Rxe3 {[%clk 0:00:38.1]} 19. d4
{[%clk 0:00:35.6]} 19... Rxc3 {[%clk 0:00:34.5]} 20. bxc3 {[%clk 0:00:33.5]}
20... Bg6 {[%clk 0:00:22.9]} 21. Ne1 {[%clk 0:00:24.7]} 21... Qxa3+ {[%clk
0:00:22.6]} 22. Kd2 {[%clk 0:00:23.9]} 22... Bxd4 {[%clk 0:00:18]} 23. cxd4
{[%clk 0:00:17.1]} 23... Rxd4+ {[%clk 0:00:18.3]} 24. Nd3 {[%clk 0:00:17]} 24...
Bxd3 {[%clk 0:00:15.1]} 25. cxd3 {[%clk 0:00:10.5]} 25... Rxd3+ {[%clk
0:00:15.8]} 26. Qxd3 {[%clk 0:00:09.5]} 26... Qxd3+ {[%clk 0:00:14.7]} 27. Kc1
{[%clk 0:00:09.6]} 27... Qc3+ {[%clk 0:00:11.8]} 28. Kb1 {[%clk 0:00:09.5]}
28... Nd3 {[%clk 0:00:12.2]} 0-1

[Event "*** Titled Tuesday Blitz"]
[Site "Chess.com"]
[Date "2020.11.24"]
[Round "8"]
[White "northridgehawk"]
[Black "WiktoriaPOL"]
[Result "0-1"]
[WhiteElo "2275"]
[BlackElo "2093"]
[TimeControl "180+1"]
[EndTime "11:45:44 PST"]
[Termination "WiktoriaPOL won by checkmate"]

1. e4 {[%clk 0:03:00.3]} 1... c5 {[%clk 0:02:59.2]} 2. Nf3 {[%clk 0:02:58.7]}
2... g6 {[%clk 0:02:58.7]} 3. d4 {[%clk 0:02:59.5]} 3... cxd4 {[%clk 0:02:58.5]}
4. Nxd4 {[%clk 0:02:58.9]} 4... Nc6 {[%clk 0:02:58.6]} 5. Be3 {[%clk 0:02:58.2]}
5... Bg7 {[%clk 0:02:54.4]} 6. c4 {[%clk 0:02:57.3]} 6... Nf6 {[%clk 0:02:53.8]}
7. Nc3 {[%clk 0:02:57.2]} 7... d6 {[%clk 0:02:52.6]} 8. Be2 {[%clk 0:02:57.4]}
8... Nxd4 {[%clk 0:02:51.8]} 9. Bxd4 {[%clk 0:02:56.8]} 9... O-O {[%clk
0:02:51.7]} 10. f3 {[%clk 0:02:55.3]} 10... a5 {[%clk 0:02:51.4]} 11. O-O {[%clk
0:02:50.7]} 11... Bd7 {[%clk 0:02:50.8]} 12. Qd2 {[%clk 0:02:49.6]} 12... a4
{[%clk 0:02:50]} 13. Rfd1 {[%clk 0:02:42.7]} 13... Qa5 {[%clk 0:02:48.9]} 14.
Qe3 {[%clk 0:02:42.4]} 14... a3 {[%clk 0:02:42]} 15. b3 {[%clk 0:02:41.8]} 15...
e5 {[%clk 0:02:21]} 16. Bb6 {[%clk 0:02:40.8]} 16... Qb4 {[%clk 0:02:19.2]} 17.
Bc7 {[%clk 0:02:15.5]} 17... Ne8 {[%clk 0:02:14.4]} 18. Bb6 {[%clk 0:02:10.3]}
18... Bh6 {[%clk 0:01:34.3]} 19. Qxh6 {[%clk 0:01:52.7]} 19... Qxc3 {[%clk
0:01:29.1]} 20. Rac1 {[%clk 0:01:45.1]} 20... Qb2 {[%clk 0:01:22.6]} 21. Kf1
{[%clk 0:01:28.8]} 21... Qxa2 {[%clk 0:01:19.4]} 22. Qe3 {[%clk 0:01:21]} 22...
Qb2 {[%clk 0:01:16.3]} 23. Rb1 {[%clk 0:01:19.3]} 23... Qc2 {[%clk 0:01:11.2]}
24. Rdc1 {[%clk 0:01:14.2]} 24... a2 {[%clk 0:01:08]} 25. Ra1 {[%clk 0:01:14.2]}
25... Qb2 {[%clk 0:01:06.3]} 26. Qc3 {[%clk 0:01:10.2]} 26... Qxc3 {[%clk
0:00:59]} 27. Rxc3 {[%clk 0:01:11.1]} 27... f5 {[%clk 0:00:54]} 28. exf5 {[%clk
0:01:06.1]} 28... Bxf5 {[%clk 0:00:54.9]} 29. Bd3 {[%clk 0:01:00.2]} 29... e4
{[%clk 0:00:52.5]} 30. Be2 {[%clk 0:00:57.9]} 30... exf3 {[%clk 0:00:52.1]} 31.
Bxf3 {[%clk 0:00:58.7]} 31... Bb1 {[%clk 0:00:47.8]} 32. Rc1 {[%clk 0:00:56.7]}
32... Nf6 {[%clk 0:00:35.8]} 33. Ke2 {[%clk 0:00:56.5]} 33... Ra6 {[%clk
0:00:30.6]} 34. Bd4 {[%clk 0:00:55.8]} 34... Re8+ {[%clk 0:00:20.6]} 35. Kd2
{[%clk 0:00:55.4]} 35... Ne4+ {[%clk 0:00:20.5]} 36. Bxe4 {[%clk 0:00:50.5]}
36... Rxe4 {[%clk 0:00:20.6]} 37. Kc3 {[%clk 0:00:50.4]} 37... Re2 {[%clk
0:00:20.2]} 38. Kb4 {[%clk 0:00:47.9]} 38... Rxg2 {[%clk 0:00:19.6]} 39. Rf1
{[%clk 0:00:46.5]} 39... Rxh2 {[%clk 0:00:15.5]} 40. c5 {[%clk 0:00:41.1]} 40...
dxc5+ {[%clk 0:00:14.1]} 41. Bxc5 {[%clk 0:00:42]} 41... Rh4+ {[%clk 0:00:13.2]}
42. Kb5 {[%clk 0:00:42]} 42... Bd3# {[%clk 0:00:11.7]} 0-1

[Event "*** Titled Tuesday Blitz"]
[Site "Chess.com"]
[Date "2020.11.24"]
[Round "8"]
[White "tigra"]
[Black "Iskusnyh"]
[Result "0-1"]
[WhiteElo "2784"]
[BlackElo "2617"]
[TimeControl "180+1"]
[EndTime "11:45:45 PST"]
[Termination "Iskusnyh won by checkmate"]

1. Nf3 {[%clk 0:01:27.6]} 1... d5 {[%clk 0:02:57.8]} 2. c4 {[%clk 0:01:25.3]}
2... c6 {[%clk 0:02:56.9]} 3. g3 {[%clk 0:01:24.1]} 3... Nf6 {[%clk 0:02:56.6]}
4. Qc2 {[%clk 0:01:22.9]} 4... Bg4 {[%clk 0:02:47.1]} 5. Bg2 {[%clk 0:01:22.4]}
5... Nbd7 {[%clk 0:02:45.7]} 6. d4 {[%clk 0:01:22.6]} 6... e6 {[%clk 0:02:44.9]}
7. O-O {[%clk 0:01:21.9]} 7... Be7 {[%clk 0:02:44]} 8. Nc3 {[%clk 0:01:15.3]}
8... Bf5 {[%clk 0:02:24.2]} 9. Qb3 {[%clk 0:01:13.2]} 9... Qb6 {[%clk 0:02:21]}
10. c5 {[%clk 0:01:12.1]} 10... Qa6 {[%clk 0:02:19.9]} 11. Nh4 {[%clk
0:01:09.6]} 11... Bg6 {[%clk 0:02:15]} 12. Nxg6 {[%clk 0:01:07.8]} 12... hxg6
{[%clk 0:02:14.4]} 13. e4 {[%clk 0:01:08.7]} 13... b6 {[%clk 0:01:54.2]} 14. e5
{[%clk 0:01:06.1]} 14... Ng4 {[%clk 0:01:46.7]} 15. h3 {[%clk 0:01:03.4]} 15...
Nh6 {[%clk 0:01:46.5]} 16. cxb6 {[%clk 0:01:02.5]} 16... axb6 {[%clk 0:01:43.9]}
17. Bxh6 {[%clk 0:01:00.6]} 17... gxh6 {[%clk 0:01:37.4]} 18. f4 {[%clk
0:00:59.7]} 18... O-O {[%clk 0:01:30.6]} 19. h4 {[%clk 0:00:55]} 19... h5 {[%clk
0:01:28.9]} 20. Bf3 {[%clk 0:00:54.3]} 20... c5 {[%clk 0:01:22.6]} 21. Bxd5
{[%clk 0:00:45.6]} 21... exd5 {[%clk 0:01:08.7]} 22. Nxd5 {[%clk 0:00:46.5]}
22... Bd8 {[%clk 0:01:08.8]} 23. f5 {[%clk 0:00:46]} 23... Qa4 {[%clk
0:00:55.8]} 24. e6 {[%clk 0:00:36.7]} 24... Qxd4+ {[%clk 0:00:25.1]} 25. Kh2
{[%clk 0:00:34.8]} 25... Nf6 {[%clk 0:00:23.6]} 26. exf7+ {[%clk 0:00:32.8]}
26... Kg7 {[%clk 0:00:21.9]} 27. Nf4 {[%clk 0:00:31.2]} 27... Ng4+ {[%clk
0:00:20.9]} 28. Kh3 {[%clk 0:00:31.2]} 28... Qd2 {[%clk 0:00:17.4]} 29. Qc3+
{[%clk 0:00:22.2]} 29... Qxc3 {[%clk 0:00:16.2]} 30. Ne6+ {[%clk 0:00:21.9]}
30... Kh6 {[%clk 0:00:14.9]} 31. bxc3 {[%clk 0:00:22.8]} 31... Rxf7 {[%clk
0:00:14.4]} 32. fxg6 {[%clk 0:00:22.4]} 32... Rxf1 {[%clk 0:00:13.8]} 33. Rxf1
{[%clk 0:00:19]} 33... Rxa2 {[%clk 0:00:13.7]} 34. g7 {[%clk 0:00:17.6]} 34...
Rh2# {[%clk 0:00:12.8]} 0-1

[Event "*** Titled Tuesday Blitz"]
[Site "Chess.com"]
[Date "2020.11.24"]
[Round "8"]
[White "enriquebutti"]
[Black "Soltan49"]
[Result "1-0"]
[WhiteElo "1986"]
[BlackElo "2223"]
[TimeControl "180+1"]
[EndTime "11:45:45 PST"]
[Termination "enriquebutti won on time"]

1. d4 {[%clk 0:03:00.9]} 1... Nf6 {[%clk 0:02:59.6]} 2. Nf3 {[%clk 0:02:59.4]}
2... e6 {[%clk 0:03:00.1]} 3. e3 {[%clk 0:02:59]} 3... b6 {[%clk 0:03:00.4]} 4.
Bd3 {[%clk 0:02:58.6]} 4... c5 {[%clk 0:03:00.8]} 5. O-O {[%clk 0:02:58.3]} 5...
Nc6 {[%clk 0:03:00.6]} 6. b3 {[%clk 0:02:56.5]} 6... d5 {[%clk 0:03:00.9]} 7.
Bb2 {[%clk 0:02:56.2]} 7... Be7 {[%clk 0:03:01.4]} 8. a3 {[%clk 0:02:54]} 8...
Bb7 {[%clk 0:03:01.9]} 9. Nbd2 {[%clk 0:02:53.7]} 9... O-O {[%clk 0:03:02.5]}
10. Ne5 {[%clk 0:02:53.5]} 10... Rc8 {[%clk 0:03:02.5]} 11. f4 {[%clk
0:02:53.2]} 11... Na5 {[%clk 0:03:01.2]} 12. c4 {[%clk 0:02:43.2]} 12... dxc4
{[%clk 0:03:00.5]} 13. bxc4 {[%clk 0:02:42.5]} 13... g6 {[%clk 0:02:53.8]} 14.
Qe1 {[%clk 0:02:30.9]} 14... cxd4 {[%clk 0:02:45.4]} 15. exd4 {[%clk 0:02:30.3]}
15... Ba6 {[%clk 0:02:46.3]} 16. Rf3 {[%clk 0:02:14.8]} 16... Nd7 {[%clk
0:02:45.2]} 17. Rc1 {[%clk 0:02:13.4]} 17... Nxe5 {[%clk 0:02:40.9]} 18. dxe5
{[%clk 0:02:07.2]} 18... Bc5+ {[%clk 0:02:37.9]} 19. Kh1 {[%clk 0:02:06.7]}
19... Bd4 {[%clk 0:02:38.8]} 20. Bxd4 {[%clk 0:02:04]} 20... Qxd4 {[%clk
0:02:39.7]} 21. Ne4 {[%clk 0:02:04.2]} 21... Bxc4 {[%clk 0:02:20.5]} 22. Nf6+
{[%clk 0:02:01.6]} 22... Kg7 {[%clk 0:02:21]} 23. Bxc4 {[%clk 0:01:54.2]} 23...
Rxc4 {[%clk 0:02:18.7]} 24. Rd1 {[%clk 0:01:52]} 24... Qb2 {[%clk 0:01:49.2]}
25. Nxh7 {[%clk 0:01:38.3]} 25... Rh8 {[%clk 0:01:31]} 26. Ng5 {[%clk
0:01:37.7]} 26... Rc2 {[%clk 0:01:25]} 27. Qg3 {[%clk 0:01:30]} 27... Rc1 {[%clk
0:01:15.6]} 28. Rff1 {[%clk 0:01:27.7]} 28... Rxd1 {[%clk 0:00:50.5]} 29. Rxd1
{[%clk 0:01:27.1]} 29... Nc4 {[%clk 0:00:41.4]} 30. h3 {[%clk 0:01:22.2]} 30...
Qxa3 {[%clk 0:00:38.6]} 31. Qf2 {[%clk 0:01:04.5]} 31... Rh5 {[%clk 0:00:25.3]}
32. Rd7 {[%clk 0:01:00]} 32... Qa1+ {[%clk 0:00:23.6]} 33. Kh2 {[%clk
0:00:58.9]} 33... Nxe5 {[%clk 0:00:23.9]} 34. Nxe6+ {[%clk 0:00:56.7]} 34... Kg8
{[%clk 0:00:19.6]} 35. Rd8+ {[%clk 0:00:50.7]} 35... Kh7 {[%clk 0:00:19]} 36.
Ng5+ {[%clk 0:00:46.5]} 36... Rxg5 {[%clk 0:00:17.4]} 37. fxg5 {[%clk
0:00:46.2]} 37... a5 {[%clk 0:00:12.1]} 38. Qf6 {[%clk 0:00:44.9]} 1-0

[Event "*** Titled Tuesday Blitz"]
[Site "Chess.com"]
[Date "2020.11.24"]
[Round "8"]
[White "Tpros"]
[Black "kot60"]
[Result "1-0"]
[WhiteElo "2592"]
[BlackElo "2461"]
[TimeControl "180+1"]
[EndTime "11:45:47 PST"]
[Termination "Tpros won on time"]

1. e4 {[%clk 0:03:00.9]} 1... e5 {[%clk 0:02:59.2]} 2. Nf3 {[%clk 0:03:01.2]}
2... Nc6 {[%clk 0:02:59]} 3. Bb5 {[%clk 0:03:01.8]} 3... a6 {[%clk 0:02:58.8]}
4. Bxc6 {[%clk 0:03:02.2]} 4... dxc6 {[%clk 0:02:59]} 5. Nc3 {[%clk 0:03:03.1]}
5... f6 {[%clk 0:02:58.9]} 6. d4 {[%clk 0:03:03.7]} 6... exd4 {[%clk 0:02:59]}
7. Nxd4 {[%clk 0:03:04.6]} 7... Bd6 {[%clk 0:02:58.7]} 8. Be3 {[%clk 0:03:04.3]}
8... Qe7 {[%clk 0:02:58.7]} 9. a3 {[%clk 0:03:03]} 9... h5 {[%clk 0:02:56.7]}
10. h4 {[%clk 0:03:02.3]} 10... Bd7 {[%clk 0:02:50.8]} 11. Qe2 {[%clk 0:03:01]}
11... O-O-O {[%clk 0:02:50.1]} 12. O-O-O {[%clk 0:03:01.1]} 12... Nh6 {[%clk
0:02:43.1]} 13. Kb1 {[%clk 0:02:56]} 13... Ng4 {[%clk 0:02:40.7]} 14. Bc1 {[%clk
0:02:55.6]} 14... Kb8 {[%clk 0:02:26.6]} 15. f3 {[%clk 0:02:55.3]} 15... Ne5
{[%clk 0:02:25.6]} 16. Rd2 {[%clk 0:02:35]} 16... Qf7 {[%clk 0:02:16.9]} 17. b3
{[%clk 0:02:32.6]} 17... Rhe8 {[%clk 0:02:03.5]} 18. Qf2 {[%clk 0:02:15.2]}
18... g6 {[%clk 0:01:58.6]} 19. Rhd1 {[%clk 0:02:14.6]} 19... Qe7 {[%clk
0:01:46.5]} 20. Ka2 {[%clk 0:02:07.3]} 20... Bc8 {[%clk 0:01:38.2]} 21. Bb2
{[%clk 0:02:03.4]} 21... Bc5 {[%clk 0:01:33.7]} 22. Qg3 {[%clk 0:02:03.4]} 22...
Bd6 {[%clk 0:01:30.9]} 23. Qe1 {[%clk 0:02:02.1]} 23... Bc5 {[%clk 0:01:25.4]}
24. Nde2 {[%clk 0:02:01.1]} 24... Be3 {[%clk 0:01:18.2]} 25. Rxd8 {[%clk
0:01:59.7]} 25... Rxd8 {[%clk 0:01:19.1]} 26. Kb1 {[%clk 0:01:47.4]} 26... Rxd1+
{[%clk 0:01:11.3]} 27. Nxd1 {[%clk 0:01:47.5]} 27... Bb6 {[%clk 0:01:08.4]} 28.
Qg3 {[%clk 0:01:40.7]} 28... Qe8 {[%clk 0:00:59.7]} 29. Ndc3 {[%clk 0:01:38.2]}
29... Qd8 {[%clk 0:00:50.8]} 30. Bc1 {[%clk 0:01:35.4]} 30... Be6 {[%clk
0:00:42]} 31. Bf4 {[%clk 0:01:32.1]} 31... Bd4 {[%clk 0:00:31.3]} 32. Qe1 {[%clk
0:01:27.6]} 32... Bb6 {[%clk 0:00:20.7]} 33. Na4 {[%clk 0:01:24.6]} 33... Ba7
{[%clk 0:00:19.8]} 34. Nec3 {[%clk 0:01:21]} 34... Nf7 {[%clk 0:00:17.2]} 35.
Be3 {[%clk 0:01:17.7]} 35... Bxe3 {[%clk 0:00:14.9]} 36. Qxe3 {[%clk 0:01:18.6]}
36... g5 {[%clk 0:00:15.2]} 37. hxg5 {[%clk 0:01:18.1]} 37... Nxg5 {[%clk
0:00:14.7]} 38. Nc5 {[%clk 0:01:18.2]} 38... Bc8 {[%clk 0:00:14.2]} 39. Nd3
{[%clk 0:01:14]} 39... Qe7 {[%clk 0:00:10.6]} 40. Kb2 {[%clk 0:01:13.8]} 40...
Ne6 {[%clk 0:00:09]} 41. a4 {[%clk 0:01:11.9]} 41... Qg7 {[%clk 0:00:08.9]} 42.
Qf2 {[%clk 0:01:05.8]} 42... Ng5 {[%clk 0:00:07.5]} 43. a5 {[%clk 0:01:03.7]}
43... f5 {[%clk 0:00:07.4]} 44. e5 {[%clk 0:01:02.4]} 44... Ne6 {[%clk
0:00:05.3]} 45. f4 {[%clk 0:00:59.8]} 45... Qg4 {[%clk 0:00:03.7]} 46. g3 {[%clk
0:00:59.8]} 46... Bd7 {[%clk 0:00:03]} 47. Na4 {[%clk 0:00:55.6]} 47... Kc8
{[%clk 0:00:01.9]} 48. Kc3 {[%clk 0:00:54.8]} 1-0

[Event "*** Titled Tuesday Blitz"]
[Site "Chess.com"]
[Date "2020.11.24"]
[Round "8"]
[White "MIJuanReyesRosa"]
[Black "Hercog"]
[Result "0-1"]
[WhiteElo "2072"]
[BlackElo "2275"]
[TimeControl "180+1"]
[EndTime "11:45:47 PST"]
[Termination "Hercog won on time"]

1. d4 {[%clk 0:02:58.2]} 1... Nf6 {[%clk 0:02:59]} 2. Nf3 {[%clk 0:02:57.6]}
2... g6 {[%clk 0:02:58.7]} 3. c4 {[%clk 0:02:57.6]} 3... Bg7 {[%clk 0:02:58.1]}
4. Nc3 {[%clk 0:02:57.5]} 4... d5 {[%clk 0:02:58.3]} 5. Bf4 {[%clk 0:02:55.3]}
5... O-O {[%clk 0:02:57.9]} 6. Rc1 {[%clk 0:02:54]} 6... dxc4 {[%clk 0:02:57.6]}
7. e3 {[%clk 0:02:52.6]} 7... c5 {[%clk 0:02:56.8]} 8. Bxc4 {[%clk 0:02:50.2]}
8... cxd4 {[%clk 0:02:56.1]} 9. exd4 {[%clk 0:02:50]} 9... Nc6 {[%clk
0:02:52.3]} 10. d5 {[%clk 0:02:42.2]} 10... Na5 {[%clk 0:02:47.1]} 11. Be2
{[%clk 0:02:21.2]} 11... b6 {[%clk 0:02:23.9]} 12. O-O {[%clk 0:02:05.4]} 12...
Nb7 {[%clk 0:02:12.4]} 13. Ne5 {[%clk 0:01:22.4]} 13... Nd6 {[%clk 0:02:02.4]}
14. Nc6 {[%clk 0:01:18.4]} 14... Qd7 {[%clk 0:02:02.3]} 15. Nb5 {[%clk
0:00:46.3]} 15... Bb7 {[%clk 0:01:53.9]} 16. Re1 {[%clk 0:00:22.4]} 16... Nfe8
{[%clk 0:01:12.8]} 17. Nxd6 {[%clk 0:00:15]} 17... Nxd6 {[%clk 0:01:08.9]} 18.
Bg4 {[%clk 0:00:13.1]} 18... f5 {[%clk 0:00:56.7]} 19. Rxe7 {[%clk 0:00:10.5]}
19... Qc8 {[%clk 0:00:53.9]} 20. Rxg7+ {[%clk 0:00:06.6]} 20... Kxg7 {[%clk
0:00:51.4]} 21. Be5+ {[%clk 0:00:04.4]} 21... Kf7 {[%clk 0:00:39.2]} 22. Bxd6
{[%clk 0:00:01.5]} 22... fxg4 {[%clk 0:00:35.7]} 23. Ne5+ {[%clk 0:00:01.2]}
23... Kg7 {[%clk 0:00:34.2]} 24. Rxc8 {[%clk 0:00:02]} 24... Raxc8 {[%clk
0:00:34.2]} 25. Nd7 {[%clk 0:00:02]} 25... Rf5 {[%clk 0:00:32.6]} 26. Qd4+
{[%clk 0:00:01.1]} 26... Kg8 {[%clk 0:00:31.4]} 27. h4 {[%clk 0:00:02]} 27...
Rd8 {[%clk 0:00:26.1]} 28. Nf6+ {[%clk 0:00:01.7]} 28... Kf7 {[%clk 0:00:25.6]}
0-1

[Event "*** Titled Tuesday Blitz"]
[Site "Chess.com"]
[Date "2020.11.24"]
[Round "8"]
[White "korbul"]
[Black "Kotofeyca"]
[Result "0-1"]
[WhiteElo "2550"]
[BlackElo "2437"]
[TimeControl "180+1"]
[EndTime "11:45:48 PST"]
[Termination "Kotofeyca won by resignation"]

1. e4 {[%clk 0:03:00.9]} 1... c5 {[%clk 0:02:59.3]} 2. Nf3 {[%clk 0:03:00.4]}
2... d6 {[%clk 0:02:59.6]} 3. Bc4 {[%clk 0:02:59.9]} 3... a6 {[%clk 0:02:59.1]}
4. Bb3 {[%clk 0:02:57.9]} 4... Nf6 {[%clk 0:02:57.3]} 5. d3 {[%clk 0:02:57.7]}
5... Nc6 {[%clk 0:02:54.9]} 6. c3 {[%clk 0:02:57.4]} 6... Bg4 {[%clk 0:02:52.7]}
7. Nbd2 {[%clk 0:02:56.1]} 7... e6 {[%clk 0:02:52.4]} 8. h3 {[%clk 0:02:55.9]}
8... Bh5 {[%clk 0:02:52.1]} 9. Nf1 {[%clk 0:02:56]} 9... Be7 {[%clk 0:02:50.2]}
10. Ng3 {[%clk 0:02:55.9]} 10... Bxf3 {[%clk 0:02:47.6]} 11. Qxf3 {[%clk
0:02:55.3]} 11... b5 {[%clk 0:02:44.9]} 12. O-O {[%clk 0:02:54.5]} 12... O-O
{[%clk 0:02:44.1]} 13. Qe2 {[%clk 0:02:52.9]} 13... d5 {[%clk 0:02:25.3]} 14. e5
{[%clk 0:02:52.5]} 14... Nd7 {[%clk 0:02:25.3]} 15. f4 {[%clk 0:02:50]} 15... c4
{[%clk 0:02:25.3]} 16. Bc2 {[%clk 0:02:48.9]} 16... cxd3 {[%clk 0:02:22.1]} 17.
Qxd3 {[%clk 0:02:47.8]} 17... g6 {[%clk 0:02:21.9]} 18. Kh1 {[%clk 0:02:42.8]}
18... b4 {[%clk 0:02:15.1]} 19. c4 {[%clk 0:02:36.1]} 19... Nc5 {[%clk
0:02:12.7]} 20. Qe2 {[%clk 0:02:35.7]} 20... Nd4 {[%clk 0:02:11.2]} 21. Qd1
{[%clk 0:02:34.9]} 21... dxc4 {[%clk 0:02:06.5]} 22. Be4 {[%clk 0:02:28.6]}
22... Nxe4 {[%clk 0:01:59.2]} 23. Nxe4 {[%clk 0:02:29.5]} 23... Qd5 {[%clk
0:01:59.4]} 24. Nf6+ {[%clk 0:02:21.3]} 24... Bxf6 {[%clk 0:01:59.2]} 25. exf6
{[%clk 0:02:22.2]} 25... Nf5 {[%clk 0:01:45.1]} 26. Qxd5 {[%clk 0:02:00]} 26...
exd5 {[%clk 0:01:44.7]} 27. Kh2 {[%clk 0:01:59.7]} 27... Rfe8 {[%clk 0:01:33.6]}
28. Bd2 {[%clk 0:01:58.9]} 28... a5 {[%clk 0:01:31.3]} 29. Rae1 {[%clk
0:01:58.3]} 29... Kf8 {[%clk 0:01:28.1]} 30. g4 {[%clk 0:01:57.1]} 30... Nd4
{[%clk 0:01:26.6]} 31. Kg3 {[%clk 0:01:51.3]} 31... Rxe1 {[%clk 0:01:23.5]} 32.
Rxe1 {[%clk 0:01:50.7]} 32... Re8 {[%clk 0:01:24]} 33. Rd1 {[%clk 0:01:50.7]}
33... c3 {[%clk 0:01:03.8]} 34. bxc3 {[%clk 0:01:46]} 34... bxc3 {[%clk
0:01:03.7]} 35. Bc1 {[%clk 0:01:43.6]} 35... Ne2+ {[%clk 0:01:01.6]} 36. Kf3
{[%clk 0:01:43.7]} 36... Nxc1 {[%clk 0:01:01.4]} 37. Rxc1 {[%clk 0:01:44.6]}
37... d4 {[%clk 0:01:01.5]} 38. g5 {[%clk 0:01:38.8]} 38... a4 {[%clk
0:01:00.8]} 39. a3 {[%clk 0:01:38.1]} 39... Re3+ {[%clk 0:00:53.4]} 40. Kf2
{[%clk 0:01:37.8]} 40... Re6 {[%clk 0:00:52.3]} 41. h4 {[%clk 0:01:33.6]} 41...
Ke8 {[%clk 0:00:50]} 42. h5 {[%clk 0:01:32.8]} 42... gxh5 {[%clk 0:00:44]} 43.
Kg3 {[%clk 0:01:18.6]} 43... Re2 {[%clk 0:00:33.9]} 44. f5 {[%clk 0:01:15.5]}
44... c2 {[%clk 0:00:32.2]} 45. Kf3 {[%clk 0:01:06.3]} 45... d3 {[%clk
0:00:32.3]} 46. Rh1 {[%clk 0:00:56.8]} 46... d2 {[%clk 0:00:20.6]} 47. Kxe2
{[%clk 0:00:56.5]} 47... c1=Q {[%clk 0:00:19.5]} 48. Rd1 {[%clk 0:00:56.3]}
48... h4 {[%clk 0:00:15.5]} 49. Rxd2 {[%clk 0:00:55.4]} 49... Qxd2+ {[%clk
0:00:15]} 50. Kxd2 {[%clk 0:00:55.3]} 50... h3 {[%clk 0:00:15.9]} 51. g6 {[%clk
0:00:55.4]} 51... hxg6 {[%clk 0:00:15.7]} 52. fxg6 {[%clk 0:00:55.6]} 52... fxg6
{[%clk 0:00:16.6]} 0-1

[Event "*** Titled Tuesday Blitz"]
[Site "Chess.com"]
[Date "2020.11.24"]
[Round "8"]
[White "VerdeNotte"]
[Black "Algeriano22"]
[Result "1-0"]
[WhiteElo "2901"]
[BlackElo "2625"]
[TimeControl "180+1"]
[EndTime "11:45:53 PST"]
[Termination "VerdeNotte won on time"]

1. e4 {[%clk 0:03:00.9]} 1... e5 {[%clk 0:02:59.7]} 2. Nf3 {[%clk 0:02:59.8]}
2... Nc6 {[%clk 0:03:00]} 3. d4 {[%clk 0:03:00.1]} 3... exd4 {[%clk 0:02:59.9]}
4. Bc4 {[%clk 0:03:00.2]} 4... Nf6 {[%clk 0:02:59.6]} 5. e5 {[%clk 0:03:00.4]}
5... d5 {[%clk 0:02:59.7]} 6. Bb5 {[%clk 0:03:00.6]} 6... Ne4 {[%clk 0:02:59.9]}
7. Nxd4 {[%clk 0:03:00.7]} 7... Bd7 {[%clk 0:03:00.3]} 8. Bxc6 {[%clk
0:02:59.1]} 8... bxc6 {[%clk 0:03:01.2]} 9. O-O {[%clk 0:02:59.1]} 9... Bc5
{[%clk 0:03:01.4]} 10. f3 {[%clk 0:02:55.8]} 10... Ng5 {[%clk 0:03:01.3]} 11. f4
{[%clk 0:02:54.3]} 11... Ne4 {[%clk 0:03:01.4]} 12. Be3 {[%clk 0:02:54]} 12...
Bb6 {[%clk 0:03:01.7]} 13. Nd2 {[%clk 0:02:52.9]} 13... c5 {[%clk 0:03:01.1]}
14. N4f3 {[%clk 0:02:48.3]} 14... Nxd2 {[%clk 0:03:00]} 15. Qxd2 {[%clk
0:02:48.8]} 15... d4 {[%clk 0:03:00.3]} 16. Bf2 {[%clk 0:02:48.7]} 16... Bc6
{[%clk 0:03:00.7]} 17. Bh4 {[%clk 0:02:48.2]} 17... Qd7 {[%clk 0:03:01]} 18.
Rae1 {[%clk 0:02:43.8]} 18... Qg4 {[%clk 0:01:50.6]} 19. h3 {[%clk 0:02:34.7]}
19... Qg6 {[%clk 0:01:50.1]} 20. e6 {[%clk 0:02:30.1]} 20... f6 {[%clk
0:01:25.3]} 21. e7 {[%clk 0:02:01]} 21... Qf5 {[%clk 0:01:05.1]} 22. c4 {[%clk
0:01:52.2]} 22... h5 {[%clk 0:00:36.2]} 23. b3 {[%clk 0:01:48.8]} 23... Kd7
{[%clk 0:00:33.5]} 24. b4 {[%clk 0:01:33]} 24... cxb4 {[%clk 0:00:17.9]} 25.
Nxd4 {[%clk 0:01:26.3]} 25... Bxd4+ {[%clk 0:00:08.4]} 26. Qxd4+ {[%clk
0:01:26.2]} 26... Kc8 {[%clk 0:00:09]} 27. Re3 {[%clk 0:01:04.2]} 27... a5
{[%clk 0:00:07.3]} 28. Bf2 {[%clk 0:01:00.2]} 28... Kb7 {[%clk 0:00:07.3]} 29.
a3 {[%clk 0:00:55.8]} 29... Rhe8 {[%clk 0:00:06.9]} 30. axb4 {[%clk 0:00:52.6]}
30... axb4 {[%clk 0:00:07.8]} 31. Qb2 {[%clk 0:00:48.2]} 31... Qa5 {[%clk
0:00:02.2]} 32. Rb1 {[%clk 0:00:46]} 32... Kc8 {[%clk 0:00:02.2]} 33. Re6 {[%clk
0:00:37.9]} 33... Bd7 {[%clk 0:00:01.3]} 34. Re3 {[%clk 0:00:31.1]} 34... Rb8
{[%clk 0:00:01.1]} 35. Be1 {[%clk 0:00:29.5]} 35... Qb6 {[%clk 0:00:01.2]} 36.
Qf2 {[%clk 0:00:28]} 1-0